{"text_format":"3","workbook":"xlsx","n_sheets":4,"sheets":["Сводный бюджет","Прибыль","Расходы на персонал","Операционные расходы"],"not_rendered":{"charts":1,"defined_names":13},"read":"whole","date_system":"1900"}

{"sheet":"Сводный бюджет","index":0,"n_rows":7,"n_cols":4,"rows_kept":7,"merged":[[0,5,1,17]]}
["Название компании",null,null,"Дата"]
["Бюджет"]
["Категория бюджета","Расчетное значение","Фактическое значение","Разница"]
["Прибыль",{"$f":"Доходы[[#Totals],[Расчетное значение]]","v":{"v":63300,"d":"63,300.00"}},{"$f":"Доходы[[#Totals],[Фактическое значение]]","v":{"v":57450,"d":"57,450.00"}},{"$f":"IF('Сводный бюджет'!$A4=\"Прибыль\",'Сводный бюджет'!$C4-'Сводный бюджет'!$B4,'Сводный бюджет'!$B4-'Сводный бюджет'!$C4)","v":{"v":-5850,"d":"-5,850.00 "}}]
["Расходы на персонал",{"$f":"РасходыНаПерсонал[[#Totals],[Расчетное значение]]","v":{"v":18500,"d":"18,500.00"}},{"$f":"РасходыНаПерсонал[[#Totals],[Фактическое значение]]","v":{"v":14100,"d":"14,100.00"}},{"$f":"IF('Сводный бюджет'!$A5=\"Прибыль\",'Сводный бюджет'!$C5-'Сводный бюджет'!$B5,'Сводный бюджет'!$B5-'Сводный бюджет'!$C5)","v":{"v":4400,"d":"4,400.00"}}]
["Операционные расходы",{"$f":"ОперационныеРасходы[[#Totals],[Расчетное значение]]","v":{"v":36000,"d":"36,000.00"}},{"$f":"ОперационныеРасходы[[#Totals],[Фактическое значение]]","v":{"v":35530,"d":"35,530.00"}},{"$f":"IF('Сводный бюджет'!$A6=\"Прибыль\",'Сводный бюджет'!$C6-'Сводный бюджет'!$B6,'Сводный бюджет'!$B6-'Сводный бюджет'!$C6)","v":{"v":470,"d":"470.00"}}]
["Сальдо (доходы минус расходы)",{"$f":"B4-B5-B6","v":{"v":8800,"d":"8,800.00"}},{"$f":"C4-C5-C6","v":{"v":7820,"d":"7,820.00"}},{"$f":"SUBTOTAL(109,Таблица2[Разница])","v":{"v":-980,"d":"-980.00 "}}]

{"sheet":"Прибыль","index":1,"n_rows":7,"n_cols":4,"rows_kept":7}
["Название компании",null,null,"Дата"]
["Прибыль"]
["Прибыль","Расчетное значение","Фактическое значение","Разница"]
["Чистая выручка от продаж",{"v":60000,"d":"60,000.00"},{"v":54000,"d":"54,000.00"},{"$f":"Доходы[[#This Row],[Фактическое значение]]-Доходы[[#This Row],[Расчетное значение]]","v":{"v":-6000,"d":"-6,000.00 "}}]
["Процентный доход",{"v":3000,"d":"3,000.00"},{"v":3000,"d":"3,000.00"},{"$f":"Доходы[[#This Row],[Фактическое значение]]-Доходы[[#This Row],[Расчетное значение]]","v":{"v":0,"d":"0.00"}}]
["Продажи активов (прибыль/убытки)",{"v":300,"d":"300.00"},{"v":450,"d":"450.00"},{"$f":"Доходы[[#This Row],[Фактическое значение]]-Доходы[[#This Row],[Расчетное значение]]","v":{"v":150,"d":"150.00"}}]
["Общий доход",{"$f":"SUBTOTAL(109,Доходы[Расчетное значение])","v":{"v":63300,"d":"63,300.00"}},{"$f":"SUBTOTAL(109,Доходы[Фактическое значение])","v":{"v":57450,"d":"57,450.00"}},{"$f":"SUBTOTAL(109,Доходы[Разница])","v":{"v":-5850,"d":"-5,850.00 "}}]

{"sheet":"Расходы на персонал","index":2,"n_rows":18,"n_cols":4,"rows_kept":18}
["Название компании",null,null,"Дата"]
["Расходы на персонал"]
["Расходы","Расчетное значение","Фактическое значение","Разница"]
["Зарплата",{"v":9500,"d":"9,500.00"},{"v":9600,"d":"9,600.00"},{"$f":"РасходыНаПерсонал[[#This Row],[Расчетное значение]]-РасходыНаПерсонал[[#This Row],[Фактическое значение]]","v":{"v":-100,"d":"-100.00 "}}]
["Выплаты сотрудникам",{"v":4000,"d":"4,000.00"},{"v":0,"d":"0.00"},{"$f":"РасходыНаПерсонал[[#This Row],[Расчетное значение]]-РасходыНаПерсонал[[#This Row],[Фактическое значение]]","v":{"v":4000,"d":"4,000.00"}}]
["Комиссионные",{"v":5000,"d":"5,000.00"},{"v":4500,"d":"4,500.00"},{"$f":"РасходыНаПерсонал[[#This Row],[Расчетное значение]]-РасходыНаПерсонал[[#This Row],[Фактическое значение]]","v":{"v":500,"d":"500.00"}}]
["Общие расходы на персонал",{"$f":"SUBTOTAL(109,РасходыНаПерсонал[Расчетное значение])","v":{"v":18500,"d":"18,500.00"}},{"$f":"SUBTOTAL(109,РасходыНаПерсонал[Фактическое значение])","v":{"v":14100,"d":"14,100.00"}},{"$f":"SUBTOTAL(109,РасходыНаПерсонал[Разница])","v":{"v":4400,"d":"4,400.00"}}]
{"$rows_empty":10}
[{"$nulls":3}," "]

{"sheet":"Операционные расходы","index":3,"n_rows":24,"n_cols":9,"rows_kept":24}
["Название компании",null,null,"Дата"]
["Операционные расходы"]
["Расходы","Расчетное значение","Фактическое значение","Разница"]
["Реклама",{"v":3000,"d":"3,000.00"},{"v":2500,"d":"2,500.00"},{"$f":"ОперационныеРасходы[[#This Row],[Расчетное значение]]-ОперационныеРасходы[[#This Row],[Фактическое значение]]","v":{"v":500,"d":"500.00"}}]
["Безнадежная задолженность",{"v":2000,"d":"2,000.00"},{"v":2000,"d":"2,000.00"},{"$f":"ОперационныеРасходы[[#This Row],[Расчетное значение]]-ОперационныеРасходы[[#This Row],[Фактическое значение]]","v":{"v":0,"d":"0.00"}}]
["Скидки за оплату наличными",{"v":1500,"d":"1,500.00"},{"v":2175,"d":"2,175.00"},{"$f":"ОперационныеРасходы[[#This Row],[Расчетное значение]]-ОперационныеРасходы[[#This Row],[Фактическое значение]]","v":{"v":-675,"d":"-675.00 "}}]
["Стоимость доставки",{"v":2000,"d":"2,000.00"},{"v":1500,"d":"1,500.00"},{"$f":"ОперационныеРасходы[[#This Row],[Расчетное значение]]-ОперационныеРасходы[[#This Row],[Фактическое значение]]","v":{"v":500,"d":"500.00"}}]
["Амортизация",{"v":1000,"d":"1,000.00"},{"v":1000,"d":"1,000.00"},{"$f":"ОперационныеРасходы[[#This Row],[Расчетное значение]]-ОперационныеРасходы[[#This Row],[Фактическое значение]]","v":{"v":0,"d":"0.00"}}]
["Сборы и платежи",{"v":500,"d":"500.00"},{"v":525,"d":"525.00"},{"$f":"ОперационныеРасходы[[#This Row],[Расчетное значение]]-ОперационныеРасходы[[#This Row],[Фактическое значение]]","v":{"v":-25,"d":"-25.00 "}}]
["Страхование",{"v":1300,"d":"1,300.00"},{"v":1275,"d":"1,275.00"},{"$f":"ОперационныеРасходы[[#This Row],[Расчетное значение]]-ОперационныеРасходы[[#This Row],[Фактическое значение]]","v":{"v":25,"d":"25.00"}}]
["Проценты",{"v":2000,"d":"2,000.00"},{"v":2200,"d":"2,200.00"},{"$f":"ОперационныеРасходы[[#This Row],[Расчетное значение]]-ОперационныеРасходы[[#This Row],[Фактическое значение]]","v":{"v":-200,"d":"-200.00 "}}]
["Юридические услуги и аудит",{"v":1000,"d":"1,000.00"},{"v":800,"d":"800.00"},{"$f":"ОперационныеРасходы[[#This Row],[Расчетное значение]]-ОперационныеРасходы[[#This Row],[Фактическое значение]]","v":{"v":200,"d":"200.00"}}]
["Ремонт и техническое обслуживание",{"v":4500,"d":"4,500.00"},{"v":4600,"d":"4,600.00"},{"$f":"ОперационныеРасходы[[#This Row],[Расчетное значение]]-ОперационныеРасходы[[#This Row],[Фактическое значение]]","v":{"v":-100,"d":"-100.00 "}}]
["Канцтовары",{"v":800,"d":"800.00"},{"v":750,"d":"750.00"},{"$f":"ОперационныеРасходы[[#This Row],[Расчетное значение]]-ОперационныеРасходы[[#This Row],[Фактическое значение]]","v":{"v":50,"d":"50.00"}}]
["Почтовые расходы",{"v":400,"d":"400.00"},{"v":350,"d":"350.00"},{"$f":"ОперационныеРасходы[[#This Row],[Расчетное значение]]-ОперационныеРасходы[[#This Row],[Фактическое значение]]","v":{"v":50,"d":"50.00"}}]
["Аренда или ипотека",{"v":4100,"d":"4,100.00"},{"v":4500,"d":"4,500.00"},{"$f":"ОперационныеРасходы[[#This Row],[Расчетное значение]]-ОперационныеРасходы[[#This Row],[Фактическое значение]]","v":{"v":-400,"d":"-400.00 "}}]
["Продажи ",{"v":350,"d":"350.00"},{"v":400,"d":"400.00"},{"$f":"ОперационныеРасходы[[#This Row],[Расчетное значение]]-ОперационныеРасходы[[#This Row],[Фактическое значение]]","v":{"v":-50,"d":"-50.00 "}}]
["Доставка и хранение",{"v":900,"d":"900.00"},{"v":840,"d":"840.00"},{"$f":"ОперационныеРасходы[[#This Row],[Расчетное значение]]-ОперационныеРасходы[[#This Row],[Фактическое значение]]","v":{"v":60,"d":"60.00"}},{"$nulls":4}," "]
["Расходные материалы",{"v":5000,"d":"5,000.00"},{"v":4500,"d":"4,500.00"},{"$f":"ОперационныеРасходы[[#This Row],[Расчетное значение]]-ОперационныеРасходы[[#This Row],[Фактическое значение]]","v":{"v":500,"d":"500.00"}}]
["Налоги",{"v":3000,"d":"3,000.00"},{"v":3200,"d":"3,200.00"},{"$f":"ОперационныеРасходы[[#This Row],[Расчетное значение]]-ОперационныеРасходы[[#This Row],[Фактическое значение]]","v":{"v":-200,"d":"-200.00 "}}]
["Телефонная связь",{"v":250,"d":"250.00"},{"v":280,"d":"280.00"},{"$f":"ОперационныеРасходы[[#This Row],[Расчетное значение]]-ОперационныеРасходы[[#This Row],[Фактическое значение]]","v":{"v":-30,"d":"-30.00 "}}]
["Коммунальные услуги",{"v":1400,"d":"1,400.00"},{"v":1385,"d":"1,385.00"},{"$f":"ОперационныеРасходы[[#This Row],[Расчетное значение]]-ОперационныеРасходы[[#This Row],[Фактическое значение]]","v":{"v":15,"d":"15.00"}}]
["Другое",{"v":1000,"d":"1,000.00"},{"v":750,"d":"750.00"},{"$f":"ОперационныеРасходы[[#This Row],[Расчетное значение]]-ОперационныеРасходы[[#This Row],[Фактическое значение]]","v":{"v":250,"d":"250.00"}}]
["Общие операционные расходы",{"$f":"SUBTOTAL(109,ОперационныеРасходы[Расчетное значение])","v":{"v":36000,"d":"36,000.00"}},{"$f":"SUBTOTAL(109,ОперационныеРасходы[Фактическое значение])","v":{"v":35530,"d":"35,530.00"}},{"$f":"SUBTOTAL(109,ОперационныеРасходы[Разница])","v":{"v":470,"d":"470.00"}}]